Cogmind - Beta 14 @@@ ROGUE MODE // 2024.11.09 @ 21:03:57 Player: Occam Result: Destroyed by G-73 Enforcer with Phase Gun Performance ------------- Evolutions (9) 4500 Regions Visited (31) 6200 Robots Destroyed (626) 3130 Value Destroyed (31179) 31179 Prototype IDs (93) 1860 Alien Tech Used (4) 800 Bonus (22856) 22856 TOTAL SCORE: 70525 Bonus ------- Triggered High Security 500 High Alert Combat Kills 10722 Follower Combat Kills 1379 Network Hubs Disabled 400 Registered with UFD 300 Met Imprinter 300 Destroyed Z-Imprinter 1000 Triggered Deep Caves Wall 500 Exposed GOLEM Chamber 500 Met Zhirov 300 A7 Reached Mainframe 300 Met R17 at Cetus 500 Found Hidden Lab 3000 Met R17 at Research 2000 Scanned by Researcher 500 Pursued by Intercept 1000 Friendly Fire -345 Cogmind --------- Core Integrity 0/1600 Matter 91/300 Energy 100/100 System Corruption 32% Temperature Cool (9) Movement Core (2000) Ox39 Location -1/Access Parts ------- > --- POWER (4) -------- Assembled Flux Generator > --- PROPULSION (6) --- (None) > --- UTILITY (12) ----- Huge Storage Unit > --- WEAPON (3) ------- (None) > --- INVENTORY (25) --- Zionite Biocell (132) Quantum Capacitor Improved Hacking Suite Experimental Hacking Suite Quantum Router Authchip [Device] Authchip [Armor] Improved Potential Cannon Peak State ------------ > --- POWER ------------ Reinforced Antimatter Reactor Assembled Flux Generator Quantum Reactor > --- PROPULSION ------- Biometal Heavy Treads Experimental Biometal Heavy Treads Advanced Heavy Siege Treads > --- UTILITY ---------- Experimental Power Amplifier Huge Storage Unit Assembled Biocell Array Assembled Combat Suite Advanced Phase Shifter Centrium Medium Armor Plating Experimental Powered Armor Medium Regenerative Plating Advanced Force Field Ghost Barrier GOLEM Unit > --- WEAPON ----------- Assembled Focal Cannon Assembled Focal Cannon Hypervelocity Multirail > --- INVENTORY -------- Quantum Reactor Biometal Medium Treads Experimental Heat Sink Experimental Energy Well Experimental Energy Well Experimental Energy Well Zionite Biocell Deep Structural Scanner Improved Terrain Scanner Weapon Mount Quantum Capacitor Improved Utility Shielding Experimental Hardlight Generator Advanced Force Field Advanced Force Field Improved Hacking Suite Experimental Hacking Suite Quantum Router Authchip [Device] Authchip [Armor] Transdimensional Reconstructor Improved Potential Cannon Fusion Bomb Launcher [Rating: 235] Favorites ----------- Power Assembled Flux Generator Engine Heavy Ion Engine Power Core Nuclear Core Reactor Assembled Flux Generator Propulsion Medium Treads Treads Medium Treads Leg Assembled Alloy Leg Wheel Armored Wheel Hover Unit Improved Antigrav System Utility Huge Storage Unit Device GOLEM Unit Storage Huge Storage Unit Processor Advanced Targeting Computer Hackware Improved Hacking Suite Protection Improved Medium Armor Plating Weapon Assembled Focal Cannon Energy Gun Improved Medium Laser Energy Cannon Assembled Focal Cannon Ballistic Gun Enhanced Autogun Ballistic Cannon Gauss Cannon Launcher Long-range Missile Launcher Special Weapon Plasma Cutter Impact Weapon Shock Maul Special Melee Weapon Improved Datajack Build | -11 -10 -10 -9 -9 -9 -8 -8 -8 -8 -8 -6 -6 -6 -6 -5 -5 -5 -5 -5 -4 -4 -4 -4 -4 -4 -3 -3 -3 -2 -2 -1 ------- Run | Yrd Mat Min Mat Min Exi Min Mat Sto Rec Scr Fac Low Zio Dee Pro Fac Upp Upp Zhi Pro Fac Ext Cet Arc Hub Res Arm Lab Res Tes Acc Slots Evolved 18 | . . . 2 . . . 2 . . . 4 . . . . 2 . . . . 2 . . . . 2 . . 2 . 2 Power 3 | . . . . . . . . . . . . . . . . 1 . . . . . . . . . 1 . . . . 1 Propulsion 4 | . . . 1 . . . . . . . 1 . . . . . . . . . . . . . . . . . 2 . . Utility 10 | . . . 1 . . . 2 . . . 3 . . . . 1 . . . . 1 . . . . 1 . . . . 1 Weapon 1 | . . . . . . . . . . . . . . . . . . . . . 1 . . . . . . . . . . Parts Attached 473 | 2 9 . 30 3 6 4 40 30 1 11 24 7 12 46 5 18 7 4 5 2 24 8 5 14 24 7 29 14 4 19 59 Power 31 | . 2 . 4 . . . 1 1 . 2 . 2 . 4 . . . . . . . . . 2 . 1 3 . . . 9 Engine 13 | . 2 . 4 . . . 1 1 . . . 1 . . . . . . . . . . . . . . . . . . 4 Core 3 | . . . . . . . . . . 2 . 1 . . . . . . . . . . . . . . . . . . . Reactor 15 | . . . . . . . . . . . . . . 4 . . . . . . . . . 2 . 1 3 . . . 5 Propulsion 77 | . 3 . 13 . 3 1 10 4 . 2 8 . . 4 . 2 . 2 1 . 1 . 1 2 2 . 5 . 2 3 8 Treads 68 | . 2 . 13 . 3 1 10 4 . 1 8 . . 3 . 2 . 2 1 . 1 . 1 2 2 . 5 . 2 2 3 Leg 3 | . . . . . . . . . . . . . . . . . . . . . . . . . . . . . . . 3 Wheel 5 | . 1 . . . . . . . . 1 . . . 1 . . . . . . . . . . . . . . . . 2 Hover 1 | . . . . . . . . . . . . . . . . . . . . . . . . . . . . . . 1 . Flight . | . . . . . . . . . . . . . . . . . . . . . . . . . . . . . . . . Utility 252 | 1 3 . 3 3 . 2 9 5 . 2 13 3 4 22 5 16 7 2 4 2 23 8 4 10 16 6 21 12 2 13 31 Device 132 | 1 1 . 1 3 . . 5 3 . 1 7 3 2 7 3 5 3 2 1 2 13 5 2 4 4 3 15 7 . 9 20 Storage 22 | . 1 . 2 . . 1 . 1 . 1 . . . 1 . 2 . . 1 . . 2 . 1 5 . . 1 . 1 2 Processor 11 | . 1 . . . . . 3 . . . 1 . . 1 1 . . . . . . . . . 2 . . 1 . . 1 Hackware 16 | . . . . . . . . . . . 2 . . . . 1 . . . . 6 . . 3 . . 2 . . 1 1 Protection 71 | . . . . . . 1 1 1 . . 3 . 2 13 1 8 4 . 2 . 4 1 2 2 5 3 4 3 2 2 7 Artifact . | . . . . . . . . . . . . . . . . . . . . . . . . . . . . . . . . Weapon 113 | 1 1 . 10 . 3 1 20 20 1 5 3 2 8 16 . . . . . . . . . . 6 . . 2 . 3 11 Energy Gun 25 | 1 . . 3 . 1 1 8 . . . . 2 . 5 . . . . . . . . . . . . . 1 . . 3 Energy Cannon 6 | . . . . . . . . . . . . . . . . . . . . . . . . . . . . 1 . 2 3 Ballistic Gun 37 | . 1 . 6 . 1 . 3 8 . 3 2 . 3 3 . . . . . . . . . . 4 . . . . 1 2 Ballistic Cannon 6 | . . . . . . . 3 3 . . . . . . . . . . . . . . . . . . . . . . . Launcher 17 | . . . . . . . 4 4 . . . . 1 5 . . . . . . . . . . . . . . . . 3 Special Weapon 4 | . . . . . . . . . . 1 . . 1 . . . . . . . . . . . 2 . . . . . . Impact Weapon 13 | . . . 1 . . . 1 5 . . 1 . 2 3 . . . . . . . . . . . . . . . . . Slashing Weapon . | . . . . . . . . . . . . . . . . . . . . . . . . . . . . . . . . Piercing Weapon . | . . . . . . . . . . . . . . . . . . . . . . . . . . . . . . . . Special Melee Weapon 5 | . . . . . 1 . 1 . 1 1 . . 1 . . . . . . . . . . . . . . . . . . Unidentified Prototypes 44 | . . . 5 1 . . 2 2 . 1 . . 1 7 . . . . 3 . 1 . 2 . . 1 1 9 . 7 1 Corrupted Parts 4 | . . . . . . 1 . . . . . 1 . . . . . . . . . . . 1 1 . . . . . . System Corruption 23 | . . . . . . 8 . . . . . 6 . . . . . . . . . . . 3 6 . . . . . . Parts Lost 99 | . 1 . 1 . . 1 6 3 . . . . . 9 2 . 2 . . . 4 3 . 1 13 2 . . . 1 50 Power 7 | . . . . . . . 1 . . . . . . . . . . . . . . . . . . . . . . . 6 Propulsion 21 | . 1 . 1 . . . 2 2 . . . . . 1 . . . . . . . . . . 2 . . . . . 12 Utility 52 | . . . . . . 1 1 1 . . . . . 8 2 . 2 . . . 3 2 . 1 4 1 . . . 1 25 Weapon 19 | . . . . . . . 2 . . . . . . . . . . . . . 1 1 . . 7 1 . . . . 7 Highest Loss Streak 25 | . 1 . 1 . . 1 4 2 . . . . . 4 1 . 2 . . . 2 1 . 1 5 1 . . . 1 25 To Critical Strikes . | . . . . . . . . . . . . . . . . . . . . . . . . . . . . . . . . Average Slot Usage (%) 90 | . 99 100 99 99 100 99 99 99 100 99 99 100 97 91 92 85 82 82 78 82 84 83 83 78 81 84 80 76 78 72 72 Engine 3 | . 14 14 10 11 11 11 8 8 9 6 . 3 6 1 . . . . . . . . . . . . . . . . . Reactor 3 | . . . . . . . . . . . . . . 4 6 4 5 5 5 5 5 5 5 5 5 9 9 9 8 8 9 Treads 17 | . 24 14 31 33 33 33 26 26 27 26 26 26 26 20 13 11 11 11 11 11 6 5 5 4 4 4 8 9 13 12 9 Leg 4 | . 3 . . . . . . . . . . . . 4 12 11 11 11 9 11 10 10 10 8 9 9 . . . . 1 Device 13 | . 13 . 11 10 11 1 16 9 9 10 13 13 12 6 12 15 16 17 17 17 17 18 17 13 15 17 18 21 21 16 18 Storage 9 | . 14 14 11 11 11 11 9 9 9 8 6 6 6 8 13 10 11 11 11 11 10 10 10 9 10 9 9 9 8 8 7 Processor 7 | . . 14 11 11 11 11 14 18 18 18 12 13 12 10 5 . . . . . . . . . . . . . 4 4 1 Hackware 4 | . . . . . . . . . . . 12 13 13 1 . 1 . . . . 11 12 10 10 10 9 9 5 4 4 4 Protection 8 | . . . . . . 9 3 8 9 7 5 6 6 18 13 13 10 11 8 11 5 5 7 9 7 10 8 7 8 8 7 Energy Gun 2 | . 14 14 9 11 . 11 7 . . . . 1 . 2 . . . . . . . . . . . . . . . . 1 Energy Cannon 5 | . . . . . . . . . . . . . . 3 12 11 10 11 10 11 14 14 14 12 12 14 14 11 8 8 6 Ballistic Gun 4 | . 14 14 11 11 11 11 7 11 17 8 12 11 6 3 . . . . . . . . . . 1 . . . . . 1 Special Melee Weapon 1 | . . . . . 10 . . . . 8 . . 1 . . . . . . . . . . . . . . . . . . Peak Build Rating 235 | 7 10 10 18 24 19 23 41 44 36 41 66 64 67 115 109 145 134 135 147 136 160 154 164 168 164 176 172 185 190 215 235 Average Rating 94 | 6 7 10 16 18 16 21 32 38 35 35 58 63 61 85 101 129 133 134 130 135 148 150 158 151 154 170 167 173 187 202 197 On Entrance 94 | 6 7 10 10 18 18 19 23 41 36 35 39 64 64 60 108 109 133 134 134 136 136 151 152 164 164 153 172 168 172 190 213 Naked Turns . | . . . . . . . . . . . . . . . . . . . . . . . . . . . . . . . . Heaviest Build 255 | 14 19 18 35 42 35 58 77 108 101 99 106 110 109 154 157 179 182 182 180 182 196 185 187 192 187 212 220 227 222 232 255 Greatest Support 245 | 20 40 12 60 60 60 60 84 84 68 68 114 114 114 114 60 80 60 60 60 60 60 75 80 60 80 60 160 160 235 245 245 Greatest Overweight (x) 43 | . 1 1 1 . . . 1 1 1 5 1 . . 7 2 2 3 3 2 3 3 6 3 3 5 3 3 1 . 1 43 Average Overweight (x) 1 | . . 1 . . . . . . 1 1 . . . 1 2 1 2 2 2 2 2 2 2 2 3 3 1 1 . . 3 Largest Inventory Capacity 25 | 8 10 10 15 15 15 20 20 25 25 25 25 25 25 25 25 25 25 25 25 25 25 25 25 25 25 25 25 25 25 25 25 Average Capacity 22 | 8 8 10 11 15 15 15 20 23 25 24 25 25 25 25 25 24 25 25 25 25 25 25 25 23 25 25 25 25 25 25 25 Most Carried 25 | 7 10 10 15 15 15 18 20 25 25 25 25 25 25 25 25 25 25 25 25 25 25 25 25 25 25 25 25 25 24 25 25 Average Carried 22 | 6 8 9 11 15 14 15 19 22 25 24 24 24 24 23 23 23 24 25 24 25 24 24 24 22 23 24 24 24 22 24 22 Final Capacity 25 | 8 10 10 15 15 15 20 20 25 25 25 25 25 25 25 25 25 25 25 25 25 25 25 25 25 25 25 25 25 25 25 25 Final Carried 25 | 7 10 10 15 15 15 18 20 25 25 25 25 25 25 25 23 25 25 25 25 25 25 25 25 25 24 25 24 24 24 25 10 Class Distribution -------------------- 21% | Scavenger-Mutant 20% | Golem 19% | Mutant 14% | Hacker-Golem 5% | Scavenger-Golem 4% | Hacker-Mutant Dominant Class ---------------- Mutant | -10/Materials Mutant | -10/Mines Scavenger-Mutant | -9/Materials Scavenger-Mutant | -9/Mines Commander-Mutant | -9/Exiles Mutant | -8/Mines Scavenger-Mutant | -8/Materials Scavenger-Mutant | -8/Storage Scavenger-Mutant | -8/Recycling Scavenger-Mutant | -8/Scraptown Hacker-Mutant | -6/Factory Hacker-Mutant | -6/Lower Caves Hacker-Assassin | -6/Zion Mutant | -6/Deep Caves Mutant | -5/Proximity Caves Golem | -5/Factory Golem | -5/Upper Caves Golem | -5/Upper Caves Golem | -5/Zhirov Golem | -4/Proximity Caves Hacker-Golem | -4/Factory Hacker-Golem | -4/Extension Hacker-Golem | -4/Cetus Scavenger-Golem | -4/Archives Scavenger-Golem | -4/Hub_04(d) Hacker-Golem | -3/Research Hacker-Golem | -3/Armory Golem | -3/Lab Scavenger-Gunner | -2/Research Hacker-Gunner | -2/Testing Generator-Tank | -1/Access Resources | -11 -10 -10 -9 -9 -9 -8 -8 -8 -8 -8 -6 -6 -6 -6 -5 -5 -5 -5 -5 -4 -4 -4 -4 -4 -4 -3 -3 -3 -2 -2 -1 ----------- Run | Yrd Mat Min Mat Min Exi Min Mat Sto Rec Scr Fac Low Zio Dee Pro Fac Upp Upp Zhi Pro Fac Ext Cet Arc Hub Res Arm Lab Res Tes Acc Matter Collected 9374 | 229 137 53 924 28 . 227 940 1460 . 235 681 223 87 1139 47 191 60 40 . 90 191 120 55 140 451 65 309 71 . 368 813 Remotely . | . . . . . . . . . . . . . . . . . . . . . . . . . . . . . . . . Salvage Created 33343 | 124 612 98 1712 61 . 481 1628 1716 . . 364 308 . 1247 320 1120 869 165 . 310 3849 2467 604 667 3131 1668 2453 71 224 2097 4977 Parts 1560 | 3 47 4 117 5 . 23 111 92 . . 23 12 . 46 25 59 28 9 . 21 180 89 29 34 134 76 111 9 9 87 177 Haulers Intercepted 23 | . 2 . 3 . . . 3 4 . . . . . . . 3 . . . . 2 2 . . 1 2 . . . 1 . Recyclers Shooed 14 | . 2 . 7 . . . 1 1 . . . . . . . . . . . . . 2 . . 1 . . . . . . Parts Field Recycled . | . . . . . . . . . . . . . . . . . . . . . . . . . . . . . . . . Retrieved Matter . | . . . . . . . . . . . . . . . . . . . . . . . . . . . . . . . . Parts Self-Destructed 98 | . . . . . . . . . . . . 10 . . 27 . 31 9 . 21 . . . . . . . . . . . Prevented . | . . . . . . . . . . . . . . . . . . . . . . . . . . . . . . . . Kills | -11 -10 -10 -9 -9 -9 -8 -8 -8 -8 -8 -6 -6 -6 -6 -5 -5 -5 -5 -5 -4 -4 -4 -4 -4 -4 -3 -3 -3 -2 -2 -1 ------- Run | Yrd Mat Min Mat Min Exi Min Mat Sto Rec Scr Fac Low Zio Dee Pro Fac Upp Upp Zhi Pro Fac Ext Cet Arc Hub Res Arm Lab Res Tes Acc Combat Hostiles Destroyed 534 | . 15 5 34 4 . 9 35 39 . . 6 7 . 47 11 11 13 3 . 6 50 28 7 4 39 20 35 1 3 28 74 Guns 128 | . 13 5 33 4 . 9 20 13 . . 6 7 . 2 . . . . . . . . . . 2 . . . . . 14 Cannons 293 | . . . . . . . 2 11 . . . . . 3 11 11 13 3 . 6 50 28 7 4 37 20 35 1 3 24 24 AOE 104 | . 1 . . . . . 13 15 . . . . . 38 . . . . . . . . . . . . . . . 2 35 Classes Destroyed 29 | 2 6 1 3 . . 1 2 1 . . . 1 . 3 1 1 . . . . 1 2 . . 2 1 . . . . 1 Worker 13 | . . . . . . . . 1 . . 1 . . . . . . . . . 3 . . . 2 . . . . 1 5 Builder 28 | . 1 1 1 . . 1 6 2 . . . . . . . 2 . . . . 3 . . . 2 2 . . . 1 6 Tunneler 6 | 2 . . . . . . . . . . . . . . . . . . . . 1 . . . . . . . . . 3 Hauler 23 | . 2 . 3 . . . 3 4 . . . . . . . 3 . . . . 2 2 . . 1 2 . . . 1 . Recycler 20 | 1 1 . 4 . . . 2 4 . . . . . . . . . . . . 1 1 . . 1 . . . . 2 3 Minesweeper 1 | . . . . . . . . . . . . 1 . . . . . . . . . . . . . . . . . . . Mechanic 4 | . . . 1 . . . . . . . . . . . . . . . . . . . . . . . . . . . 3 Operator 20 | . 2 . 1 . . . 2 1 . . . . . . . . . . . . 2 . . 9 . 2 1 . . . . Drone 3 | . . . . . . . . . . . . . . . 1 . . . . 2 . . . . . . . . . . . Watcher 34 | . 3 . 5 . . . 3 2 . . . . . . . 3 . . . . 5 1 2 . 1 1 4 . 1 2 1 Swarmer 77 | . 9 . 16 4 . . 10 . . . . 4 . . 8 . . . . . 6 . . . . 4 3 . . 5 8 Saboteur 4 | . . . . . . . . . . . . . . . . . . . . . 1 . . . . . 1 . . . 2 Grunt 196 | . 6 . 7 . . 7 15 23 . . . 3 . . . 2 10 2 . 4 27 13 . . 16 11 12 . . 6 32 Brawler 17 | . . . 1 . . 1 1 2 . . . . . . . . 1 . . . 1 2 . . 1 . 2 . . . 5 Duelist 22 | . . . . . . . 2 1 . . . . . . . . 1 1 . . 1 . . . 2 . 1 . . 2 11 Protector 10 | . . . . . . . 1 2 . . . . . . . . . . . . . 1 . . 1 . . . . . 5 Sentry 49 | . . . 10 . . . 5 10 . . 2 . . . . 2 1 . . . 2 7 . 4 2 . 1 . . . 3 Demolisher 2 | . . . . . . . . . . . . . . . . . . . . . . 1 . . . 1 . . . . . Specialist 6 | . . . . . . . . . . . . . . . . . . . . . . . . . 2 . 2 . 2 . . Hunter 35 | . . . . . . 1 1 1 . . 4 . . . 2 3 . . . . 4 . 1 . 6 2 6 . . 4 . Programmer 36 | . . . . . . . . . . . . . . . . 4 . . . . 8 2 . . 6 . 7 . . 6 3 Heavy 2 | . . . . . . . . . . . . . . . . . . . . . . . . . 1 . . . 1 . . Behemoth 4 | . . . . . . . . . . . . . . . . . . . . . . 2 . . . 1 . . . . 1 Cetus Guard 6 | . . . . . . . . . . . . . . . . . . . . . . . 6 . . . . . . . . Enhanced Grunt 1 | . . . . . . . . . . . . . . 1 . . . . . . . . . . . . . . . . . Lightning 2 | . . . . . . . . . . . . . . . . . . . . . . . . . 2 . . . . . . Tracker 4 | . . . . . . . . . . . . . . . . . . . . . . . . . . . . . . 2 2 Combat Programmer 4 | . . . . . . . . . . . . . . . . . . . . . . . . . . . . . . 2 2 Investigator 1 | . . . . . . . . . . . . . . . . . . . . . . . . . . . . . . . 1 Striker 1 | . . . . . . . . . . . . . . . . . . . . . . . . . . 1 . . . . . Protovariant Y 1 | . . . . . . . . . . . . . . . . . . . . . . . . . . . . . . 1 . Z-Technician 4 | . . . . . . . . . . . . . . 4 . . . . . . . . . . . . . . . . . Z-Light 6 | . . . . . . . . . . . . . . 6 . . . . . . . . . . . . . . . . . Assembler 2 | . . . . . . . . . . . . . . 2 . . . . . . . . . . . . . . . . . Assembled 42 | . . 5 . . . . . . . . . . . 37 . . . . . . . . . . . . . . . . . Golem 4 | . . . . . . . . . . . . . . 4 . . . . . . . . . . . . . . . . . Best Kill Streak 37 | 2 4 5 6 2 . 3 11 16 . . 2 4 . 37 4 5 7 3 . 5 9 7 4 7 11 6 10 1 3 7 17 Combat Bots Only 35 | . 3 3 6 2 . 3 8 11 . . 2 4 . 35 4 3 7 3 . 5 7 6 3 1 9 6 10 1 3 4 13 Max Kills in Single Turn 14 | 1 1 1 2 1 . 1 4 3 . . 1 2 . 14 1 1 1 1 . 1 2 2 2 1 2 2 1 1 1 3 5 Gunslinging 1 | . . . 1 . . . . . . . . 1 . . . . . . . . . . . . . . . . . . . Exploded 14 | . 1 . . . . . 3 3 . . . . . 14 . . . . . . . . . . . . . . . 1 5 Melee . | . . . . . . . . . . . . . . . . . . . . . . . . . . . . . . . . Uniques/NPCs Destroyed 2 | . . . . . . . . . . . . . . 1 . . . . . . . . . . . . . 1 . . . Z-Imprinter (-6/Deep Caves) A5 (-3/Lab) Combat | -11 -10 -10 -9 -9 -9 -8 -8 -8 -8 -8 -6 -6 -6 -6 -5 -5 -5 -5 -5 -4 -4 -4 -4 -4 -4 -3 -3 -3 -2 -2 -1 -------- Run | Yrd Mat Min Mat Min Exi Min Mat Sto Rec Scr Fac Low Zio Dee Pro Fac Upp Upp Zhi Pro Fac Ext Cet Arc Hub Res Arm Lab Res Tes Acc Hostile Shots Fired 3250 | . 75 13 132 14 . 34 134 163 . . 111 22 . 114 94 36 85 44 . 26 285 131 6 16 379 85 116 13 8 164 950 Missed 983 | . 17 3 34 5 . 7 33 46 . . 32 3 . 33 26 13 23 21 . 11 103 55 2 4 134 32 47 2 2 31 264 Damage Taken 39770 | . 710 196 1135 73 . 434 1463 1701 . . 901 237 . 2273 1006 748 1007 333 . 253 3645 1909 121 334 5664 1294 820 144 121 1653 11595 Core 4061 | . 179 55 198 17 . 49 203 300 . . 105 51 . 267 47 26 81 14 . 15 127 182 . 27 403 103 25 . . 63 1524 Absorbed by Shields 9356 | . . . . . . . 140 60 . . 244 68 . 76 109 . . . . . . 115 30 . . . 480 148 124 1416 6346 Reduced by Siege Mode 957 | . . . . . . . . . . . . . . . . . . . . . . . . 7 124 . 13 13 32 174 594 Redirected to Shielding 279 | . . . . . . . . . . . . . . 161 . . . . . . . . . . 23 6 . . . . 89 Ignored by Resistances 465 | . . . . . . . . . . . . . . . . 144 200 68 . 53 . . . . . . . . . . . Regen/Repaired (Parts) 1397 | . . . 94 . . . . . . 486 88 . . . . . . . . . . . . . . . . 114 41 229 345 Core Remaining (%) 56 | 100 . 6 . . . 34 . . . 8 . . . . 44 . . . . 86 . . . . 35 . . 100 . 95 . Volleys Fired 1567 | 9 72 25 112 6 . 26 100 95 . . 34 17 4 77 26 42 35 10 . 14 110 56 19 22 148 41 76 14 11 171 195 Largest 3 | 2 2 2 2 2 . 2 2 2 . . 2 2 1 2 2 2 2 2 . 2 3 3 3 3 3 3 3 2 1 1 3 Hottest 201 | 70 70 70 79 79 . 92 96 96 . . 50 100 20 100 50 50 50 50 . 50 75 75 75 75 80 75 75 50 200 200 201 Shots Fired 3026 | 18 144 47 211 12 . 52 189 176 . . 68 34 4 119 52 72 70 18 . 28 285 152 57 66 300 115 204 25 11 167 330 Gun 1042 | 18 144 47 211 12 . 52 144 78 . . 68 34 . 74 . . . . . . . . . . 48 . . . . . 112 Cannon 1917 | . . . . . . . 36 84 . . . . . 24 52 72 70 18 . 28 285 152 57 66 247 115 204 25 11 167 204 Launcher 58 | . . . . . . . 9 14 . . . . . 21 . . . . . . . . . . . . . . . . 14 Special 9 | . . . . . . . . . . . . . 4 . . . . . . . . . . . 5 . . . . . . Kinetic 787 | 9 72 25 144 6 . 26 109 162 . . 68 28 . 24 . . . . . . . . . . 48 . . . . . 66 Thermal 2135 | 9 72 22 67 6 . 26 68 . . . . . 4 46 52 72 70 18 . 28 285 152 57 66 247 115 204 25 11 167 246 Explosive 58 | . . . . . . . 9 14 . . . . . 21 . . . . . . . . . . . . . . . . 14 Electromagnetic 41 | . . . . . . . 3 . . . . 6 . 28 . . . . . . . . . . . . . . . . 4 Robot Hit Streak 70 | 7 10 4 23 6 . 14 27 20 . . 12 16 . 22 5 16 15 22 . 23 32 56 40 68 70 38 63 27 31 18 39 Robot Miss Streak 7 | 3 6 4 2 3 . 1 4 4 . . 6 1 . 5 7 2 2 . . 1 3 1 1 . 4 1 1 . . 3 3 Penetration Max 1 | . . . . . . . 1 1 . . . . . . . . . . . . . . . . 1 . . . . . 1 Secondary Targets 20 | . 6 1 5 1 . 2 2 1 . . . 1 . . . . . . . . . . . . . . . . . . 1 Max Gunslinging Chain 1 | . 1 1 1 1 . 1 1 1 . . . 1 . . . . . . . . . . . . . . . . . . 1 Capacitor 211 | . . . . . . . . . . . . . . . . . . . . . . . . . . . . . . 167 44 Shots Hit Robots 2147 | 13 88 28 162 7 9 43 139 126 1 1 51 29 1 77 22 40 51 11 . 14 189 117 31 52 234 79 145 20 4 111 252 Core Hits 1189 | 5 39 14 63 4 . 17 72 81 . . 23 14 . 112 9 21 19 4 . 10 101 51 20 21 90 41 64 8 4 47 235 Critical Kills 15 | . . . . . . . . . . . 1 . . . . . . . . . . . . . . . . . . 1 13 Critical Parts Destroyed 35 | . . . . . . . . 2 . . . . . . . . . . . . . . . . 1 . . . . . 32 Critical Strikes 92 | 1 8 1 6 1 . . 7 10 . . 1 . . . . . . . . . . . . . 1 . . . . 1 55 Burn 23 | 1 8 1 6 1 . . 3 . . . . . . . . . . . . . . . . . . . . . . . 3 Meltdown 1 | . . . . . . . . . . . . . . . . . . . . . . . . . . . . . . 1 . Destroy 54 | . . . . . . . . 1 . . . . . . . . . . . . . . . . 1 . . . . . 52 Blast 12 | . . . . . . . 4 8 . . . . . . . . . . . . . . . . . . . . . . . Smash 2 | . . . . . . . . 1 . . 1 . . . . . . . . . . . . . . . . . . . . Melee Attacks 48 | . . . 1 . 9 . 1 12 1 1 4 . 12 7 . . . . . . . . . . . . . . . . . Impact 36 | . . . 1 . . . 1 12 . . 4 . 11 7 . . . . . . . . . . . . . . . . . Slashing . | . . . . . . . . . . . . . . . . . . . . . . . . . . . . . . . . Piercing . | . . . . . . . . . . . . . . . . . . . . . . . . . . . . . . . . Sneak Attacks 14 | . . . . . 8 . . 2 1 1 1 . 1 . . . . . . . . . . . . . . . . . . Combat Hostiles 8 | . . . . . 8 . . . . . . . . . . . . . . . . . . . . . . . . . . Follow-up Attacks . | . . . . . . . . . . . . . . . . . . . . . . . . . . . . . . . . Damage Inflicted 97505 | 143 1231 298 2721 122 . 705 3960 5503 . . 847 508 . 5551 925 1927 2466 408 . 670 9376 6334 2138 2356 9855 3533 6727 694 755 7309 20443 Guns 12847 | 143 947 298 2715 122 . 704 1991 1053 . . 705 488 . 1162 . . . . . . . . . . 688 . . . . . 1831 Cannons 63703 | . . . . . . . 684 1673 . . . . . 568 925 1915 2466 408 . 670 9001 6233 2138 2356 9167 3533 6727 694 506 5956 8083 Explosions 20435 | . 284 . . . . . 1285 2611 . . . 20 . 3821 . . . . . . 283 . . . . . . . 249 1353 10529 Melee 308 | . . . . . . . . 166 . . 142 . . . . . . . . . . . . . . . . . . . . Ramming 212 | . . . 6 . . 1 . . . . . . . . . 12 . . . . 92 101 . . . . . . . . . Kinetic 9748 | 57 343 134 1704 68 . 299 1496 2726 . . 705 366 . 274 . . . . . . . . . . 688 . . . . . 888 Thermal 71797 | 86 888 164 1011 54 . 405 1162 . . . . 20 . 1000 925 1915 2466 408 . 670 9056 6233 2138 2356 9167 3533 6727 694 755 7309 12655 Explosive 14545 | . . . . . . . 1227 2611 . . . . . 3770 . . . . . . 190 . . . . . . . . . 6747 Electromagnetic 895 | . . . . . . . 75 . . . . 122 . 507 . . . . . . 38 . . . . . . . . . 153 Impact 308 | . . . . . . . . 166 . . 142 . . . . . . . . . . . . . . . . . . . . Slashing . | . . . . . . . . . . . . . . . . . . . . . . . . . . . . . . . . Piercing . | . . . . . . . . . . . . . . . . . . . . . . . . . . . . . . . . Highest Corruption 33 | . 1 1 . . . 8 . . . . . 6 6 5 5 2 . . . . 1 1 1 3 33 . 4 8 3 7 32 Average Corruption 5 | . 1 1 . . . 8 . . . . . 6 6 5 5 1 . . . . 1 1 1 1 20 . 3 4 2 4 19 Corruption Purged 14 | . . . . . . . . . . . . . . . . 2 . . . . . . 1 3 . . . 8 . . . Corruption Blocked . | . . . . . . . . . . . . . . . . . . . . . . . . . . . . . . . . Effects 209 | . 2 5 . . . 1 . . . . . . 4 43 25 . . . . . 6 13 2 . 40 . 7 8 . 24 29 Message Errors 52 | . 1 2 . . . . . . . . . . 1 12 3 . . . . . 2 6 1 . 7 . 3 2 . 5 7 Matter Fused 39 | . . 1 . . . . . . . . . . 1 11 5 . . . . . 1 1 1 . 8 . 1 . . 7 2 Heat Flow Errors 24 | . . . . . . . . . . . . . 1 6 5 . . . . . . 2 . . 7 . 2 1 . . . Energy Discharges 22 | . . 1 . . . . . . . . . . 1 4 3 . . . . . 1 1 . . 5 . . . . 5 1 Parts Rejected 2 | . . . . . . . . . . . . . . . . . . . . . . . . . 1 . . . . . 1 Parts Fused 2 | . . . . . . . . . . . . . . . . . . . . . . . . . . . . 1 . 1 . Data Loss (minor) 27 | . 1 1 . . . . . . . . . . . 6 8 . . . . . . 1 . . 2 . . 2 . . 6 Data Loss (major) 11 | . . . . . . . . . . . . . . 3 1 . . . . . 1 . . . 3 . . . . 2 1 Misfires 5 | . . . . . . . . . . . . . . . . . . . . . . . . . 2 . . 1 . . 2 Alerts 7 | . . . . . . 1 . . . . . . . . . . . . . . . 2 . . 1 . . 1 . . 2 Misdirections 3 | . . . . . . . . . . . . . . . . . . . . . . . . . . . . . . . 3 Weapon Failures 15 | . . . . . . . . . . . . . . 1 . . . . . . 1 . . . 4 . 1 . . 4 4 Overload Shots . | . . . . . . . . . . . . . . . . . . . . . . . . . . . . . . . . Overflow Damage 4009 | . 109 . . . . . 109 252 . . . . . 212 104 47 55 33 . 24 262 154 5 147 357 34 328 . . 620 1157 Projectiles 2451 | . . . . . . . 43 42 . . . . . 56 104 47 55 33 . 24 232 154 5 147 357 34 328 . . 268 522 Explosions 1414 | . 109 . . . . . 66 66 . . . . . 156 . . . . . . 30 . . . . . . . . 352 635 Melee 144 | . . . . . . . . 144 . . . . . . . . . . . . . . . . . . . . . . . Knockbacks 14 | . . . . . . . 5 9 . . . . . . . . . . . . . . . . . . . . . . . Impact . | . . . . . . . . . . . . . . . . . . . . . . . . . . . . . . . . Kinetic 14 | . . . . . . . 5 9 . . . . . . . . . . . . . . . . . . . . . . . Secondary . | . . . . . . . . . . . . . . . . . . . . . . . . . . . . . . . . Self-Inflicted Damage 1260 | . 70 . . . . . . 26 . . 114 . . 177 . . . . . . 112 . . . . . . . . . 761 Shots 23 | . 1 . . . . . . 3 . . 1 . . 3 . . . . . . 2 . . . . . . . . . 13 Rammed 10 | . 3 . 5 . . 1 . 1 . . . . . . . . . . . . . . . . . . . . . . . Targets Rammed 23 | . 3 . 6 . . 1 . 1 . . . . . . . 1 . . . . 5 6 . . . . . . . . . Kicked 12 | . . . . . . . . . . . . . . . . 1 . . . . 5 6 . . . . . . . . . Crushed 1 | . . . 1 . . . . . . . . . . . . . . . . . . . . . . . . . . . . Highest Temperature 480 | 110 232 140 93 36 . 414 317 323 . . 9 42 268 288 245 38 123 54 . 90 155 225 . 51 222 347 295 167 252 456 480 Average Temperature 64 | 45 47 56 19 19 . 126 96 48 . . 5 24 140 66 108 11 53 39 . 64 32 81 . 18 62 63 50 58 124 165 101 Received Heat Transfer 7183 | . 150 . 339 . . 243 692 714 . . 53 63 . 350 . 45 471 90 . 90 682 388 . 45 625 603 61 . . 70 1409 Effects 16 | . . . . . . 2 5 . . . . . . 1 . . . . . . . . . . . . 2 . . 1 5 Shutdowns 2 | . . . . . . . . . . . . . . . . . . . . . . . . . . . . . . 1 1 Energy Bleed 3 | . . . . . . 1 1 . . . . . . 1 . . . . . . . . . . . . . . . . . Interference 7 | . . . . . . . 3 . . . . . . . . . . . . . . . . . . . 2 . . . 2 Matter Decay 1 | . . . . . . 1 . . . . . . . . . . . . . . . . . . . . . . . . . Short Circuit 2 | . . . . . . . 1 . . . . . . . . . . . . . . . . . . . . . . . 1 Damage (minor) 1 | . . . . . . . . . . . . . . . . . . . . . . . . . . . . . . . 1 Siege Activations 45 | . . . . . . . . . . . . . . . . . . . . . . . 2 4 8 1 10 1 1 11 7 Total Turns 789 | . . . . . . . . . . . . . . . . . . . . . . . 22 55 222 20 84 28 12 100 246 Longest Duration 102 | . . . . . . . . . . . . . . . . . . . . . . . 18 32 102 20 26 28 12 25 69 Robots Corrupted 5 | . . . . . . . . 1 . . . . . 4 . . . . . . . . . . . . . . . . . Combat Hostiles 4 | . . . . . . . . . . . . . . 4 . . . . . . . . . . . . . . . . . Parts Fried 7 | . . . . . . . . . . . . 1 . . . . . . . . 1 2 2 . . 1 . . . . . Impact Corruptions 3 | . . . . . . . . 3 . . . . . . . . . . . . . . . . . . . . . . . Robots Melted 5 | . 1 . 1 . . . . . . . . . . . . . . . . . . . . . . . . . . 2 1 Combat Hostiles 5 | . 1 . 1 . . . . . . . . . . . . . . . . . . . . . . . . . . 2 1 Parts Melted 73 | . 8 1 8 . . . 4 . . . . . . 2 1 3 2 . . 1 5 7 . 5 3 3 4 . . 5 11 Heat Transferred 46860 | 333 2518 555 2553 185 . 814 2381 . . . . 50 . 918 550 975 1325 225 . 375 5000 2918 1050 1300 4458 1975 3597 396 415 4280 7714 Parts Sabotaged 1 | . . . . . . . . . . . . . . . . . . . . . . . . . . . . . . . 1 Parts Stolen . | . . . . . . . . . . . . . . . . . . . . . . . . . . . . . . . . Parts Stripped . | . . . . . . . . . . . . . . . . . . . . . . . . . . . . . . . . Power Chain Reactions 4 | . . . . . . . 1 . . . . 1 . 1 . . . . . . . . . . . . . . . . 1 Alert | -11 -10 -10 -9 -9 -9 -8 -8 -8 -8 -8 -6 -6 -6 -6 -5 -5 -5 -5 -5 -4 -4 -4 -4 -4 -4 -3 -3 -3 -2 -2 -1 ------- Run | Yrd Mat Min Mat Min Exi Min Mat Sto Rec Scr Fac Low Zio Dee Pro Fac Upp Upp Zhi Pro Fac Ext Cet Arc Hub Res Arm Lab Res Tes Acc Peak Influence 2687 | 15 390 64 618 393 . 117 826 1132 441 . 245 . . . . 302 . . . . 1576 1142 800 475 829 959 1224 . 137 883 2687 Initial 639 | . 9 64 1 232 . . 27 348 441 . . . . . . 300 . . . . 150 620 639 278 4 325 424 . . 76 516 Average 492 | 8 217 36 381 335 . 42 318 879 355 . 54 . . . . 128 . . . . 844 640 688 225 526 613 682 . 24 485 1678 Maximum Alert Level 5 | . 1 . 2 1 . . 3 4 2 . 1 . . . . 1 . . . . 4 4 3 2 3 3 4 . . 3 5 Low Security (%) 28 | 100 33 100 13 5 . 100 26 . . . 98 . . . . 76 . . . . 10 . . 44 11 . . . 100 3 . Level 1 21 | . 66 . 34 94 . . 48 3 56 . 1 . . . . 23 . . . . 17 . . 33 6 13 3 . . 35 . Level 2 27 | . . . 52 . . . 15 9 43 . . . . . . . . . . . 12 79 64 21 73 50 51 . . 39 7 Level 3 15 | . . . . . . . 9 79 . . . . . . . . . . . . 21 17 35 . 8 35 40 . . 21 12 Level 4 4 | . . . . . . . . 7 . . . . . . . . . . . . 38 2 . . . . 4 . . . 7 Level 5 2 | . . . . . . . . . . . . . . . . . . . . . . . . . . . . . . . 42 High Security 1 | . . . . . . . . . . . . . . . . . . . . . . . . . . . . . . . 30 Max Security . | . . . . . . . . . . . . . . . . . . . . . . . . . . . . . . . . Squads Dispatched 106 | . 4 . 3 . . . 5 7 . . 2 . . . . 3 . . . . 13 5 1 . 12 6 8 . 2 8 27 Investigation 17 | . 2 . 2 . . . 1 1 . . 1 . . . . 1 . . . . 3 . 1 . 1 2 1 . . . 1 Extermination 14 | . . . . . . . . . . . 1 . . . . 2 . . . . 4 . . . 2 . 2 . 1 2 . Reinforcement 27 | . 2 . 1 . . . 3 4 . . . . . . . . . . . . 3 2 . . 4 3 1 . 1 3 . Assault 38 | . . . . . . . 1 2 . . . . . . . . . . . . 3 3 . . 3 1 4 . . . 21 Garrison 4 | . . . . . . . . . . . . . . . . . . . . . . . . . 2 . . . . . 2 Intercept 6 | . . . . . . . . . . . . . . . . . . . . . . . . . . . . . . 3 3 Searches Triggered . | . . . . . . . . . . . . . . . . . . . . . . . . . . . . . . . . Construction Impeded 8 | . . . . . . . 1 2 . . . . . . . . . . . . 2 1 . . . . . . . 2 . Haulers Reinforced 2 | . . . . . . . . . . . . . . . . . . . . . 1 . . . 1 . . . . . . Active Scanning Responses . | . . . . . . . . . . . . . . . . . . . . . . . . . . . . . . . . Cargo Convoy Interrupts . | . . . . . . . . . . . . . . . . . . . . . . . . . . . . . . . . Stealth | -11 -10 -10 -9 -9 -9 -8 -8 -8 -8 -8 -6 -6 -6 -6 -5 -5 -5 -5 -5 -4 -4 -4 -4 -4 -4 -3 -3 -3 -2 -2 -1 --------- Run | Yrd Mat Min Mat Min Exi Min Mat Sto Rec Scr Fac Low Zio Dee Pro Fac Upp Upp Zhi Pro Fac Ext Cet Arc Hub Res Arm Lab Res Tes Acc Distress Signals 31 | . . . 4 . . . 1 4 . . . . . . . . . . . . 2 . 2 . 3 11 1 . . 1 2 Communications Jammed . | . . . . . . . . . . . . . . . . . . . . . . . . . . . . . . . . Distress Signals . | . . . . . . . . . . . . . . . . . . . . . . . . . . . . . . . . Times Spotted 720 | . 24 5 46 6 . 10 56 46 . . 6 7 . 56 15 11 13 14 . 6 64 40 4 12 51 29 48 1 7 29 114 Peak Tracking Total 37 | . 3 2 5 3 . 4 6 10 . . 2 4 . 37 5 2 5 11 . 4 6 7 5 1 6 7 7 1 4 5 17 Tactical Retreats 34 | . . . 4 1 . 1 5 3 . . . 1 . 5 1 . . . . . 4 . . . 2 . 2 . . . 5 Traps | -11 -10 -10 -9 -9 -9 -8 -8 -8 -8 -8 -6 -6 -6 -6 -5 -5 -5 -5 -5 -4 -4 -4 -4 -4 -4 -3 -3 -3 -2 -2 -1 ------- Run | Yrd Mat Min Mat Min Exi Min Mat Sto Rec Scr Fac Low Zio Dee Pro Fac Upp Upp Zhi Pro Fac Ext Cet Arc Hub Res Arm Lab Res Tes Acc Traps Triggered 15 | . 1 . 3 . . . 4 . . . . . . . . 1 . . . . . 2 . . . . 1 . 2 1 . Indirectly . | . . . . . . . . . . . . . . . . . . . . . . . . . . . . . . . . Trap Hack Attempts 9 | . . . . . . . 9 . . . . . . . . . . . . . . . . . . . . . . . . Triggered . | . . . . . . . . . . . . . . . . . . . . . . . . . . . . . . . . Disarmed . | . . . . . . . . . . . . . . . . . . . . . . . . . . . . . . . . Reprogrammed 1 | . . . . . . . 1 . . . . . . . . . . . . . . . . . . . . . . . . Reused 1 | . . . . . . . . . . . . . . 1 . . . . . . . . . . . . . . . . . Traps Extracted . | . . . . . . . . . . . . . . . . . . . . . . . . . . . . . . . . Installed 4 | . . . . . . . . . . 1 . . . 3 . . . . . . . . . . . . . . . . . Triggered 7 | . . . . . . . . . . . . 2 . . 1 . 2 1 . . . . . . 1 . . . . . . Most Traps Carried 3 | . . . . . . . . . . . . 3 3 3 . . . . . . . . . . . . . . . . . Machines | -11 -10 -10 -9 -9 -9 -8 -8 -8 -8 -8 -6 -6 -6 -6 -5 -5 -5 -5 -5 -4 -4 -4 -4 -4 -4 -3 -3 -3 -2 -2 -1 ---------- Run | Yrd Mat Min Mat Min Exi Min Mat Sto Rec Scr Fac Low Zio Dee Pro Fac Upp Upp Zhi Pro Fac Ext Cet Arc Hub Res Arm Lab Res Tes Acc Machines Disabled 74 | . 5 . 1 . . . 1 2 . . 5 . 3 2 . . . . . . 22 1 . 1 3 2 7 2 . 11 6 Max in Single Turn 6 | . 5 . 1 . . . 1 1 . . 4 . 1 1 . . . . . . 6 1 . 1 1 1 1 1 . 1 2 Garrison Access 11 | . . . . . . . . 1 . . 2 . . . . 1 . . . . 2 . . . 1 1 . . . . 3 Network Hub 2 | . . . . . . . . . . . . . . . . . . . . . . . . . 2 . . . . . . Machines Repaired . | . . . . . . . . . . . . . . . . . . . . . . . . . . . . . . . . Machines Dismantled 4 | . . . . . . . . . . . . . 3 . . . . . . . . . . . 1 . . . . . . Machines Sabotaged . | . . . . . . . . . . . . . . . . . . . . . . . . . . . . . . . . Overloaded Fab Kills . | . . . . . . . . . . . . . . . . . . . . . . . . . . . . . . . . Hacking | -11 -10 -10 -9 -9 -9 -8 -8 -8 -8 -8 -6 -6 -6 -6 -5 -5 -5 -5 -5 -4 -4 -4 -4 -4 -4 -3 -3 -3 -2 -2 -1 --------- Run | Yrd Mat Min Mat Min Exi Min Mat Sto Rec Scr Fac Low Zio Dee Pro Fac Upp Upp Zhi Pro Fac Ext Cet Arc Hub Res Arm Lab Res Tes Acc Machines Accessed 110 | . 6 . 13 1 1 . 4 6 1 7 9 2 . . . 7 1 1 6 . 14 5 1 . 2 4 7 3 2 2 5 Terminals 57 | . 5 . 11 . . . 2 4 1 . 5 . . . . 4 . . . . 7 5 1 . 1 2 3 . 2 1 3 Fabricators 9 | . . . . . . . . . . . 1 . . . . 1 . . . . 3 . . . . . 4 . . . . Repair Stations 4 | . . . 1 . . . . 1 . . 1 . . . . . . . . . 1 . . . . . . . . . . Recycling Units 3 | . 1 . 1 . . . 1 . . . . . . . . . . . . . . . . . . . . . . . . Scanalyzers 4 | . . . . . . . . . . . . . . . . 1 . . . . 1 . . . . 1 . . . 1 . Garrison Access 11 | . . . . . . . 1 1 . . 2 . . . . 1 . . . . 2 . . . 1 1 . . . . 2 Total Hacks 368 | . 19 . 41 1 1 . 7 18 2 49 23 6 . . . 21 1 1 28 . 45 9 2 . 13 13 24 3 8 8 25 Successful 207 | . 11 . 17 1 1 . 2 6 2 49 14 6 . . . 9 1 1 28 . 22 6 1 . 4 4 11 3 3 1 4 Failed 160 | . 8 . 23 . . . 5 12 . . 9 . . . . 12 . . . . 23 3 1 . 9 9 13 . 5 7 21 Catastrophic 34 | . . . 4 . . . 3 1 . . . . . . . 4 . . . . 2 1 1 . 2 1 4 . . 3 8 Database Lockouts 1 | . . . 1 . . . . . . . . . . . . . . . . . . . . . . . . . . . . Manual 138 | . 18 . 33 . 5 . 5 7 2 . 7 . 1 . . 13 . . . . 22 2 . . 9 5 3 1 1 . 4 Terminals 193 | . 17 . 37 . . . 4 14 2 . 13 . . . . 11 . . . . 23 9 2 . 9 9 11 . 8 5 19 Fabricators 29 | . . . . . . . . . . . 1 . . . . 3 . . . . 12 . . . . . 13 . . . . Repair Stations 12 | . . . 2 . . . . 2 . . 4 . . . . . . . . . 4 . . . . . . . . . . Recycling Units 5 | . 2 . 2 . . . 1 . . . . . . . . . . . . . . . . . . . . . . . . Scanalyzers 11 | . . . . . . . . . . . . . . . . 4 . . . . 2 . . . . 2 . . . 3 . Garrison Access 28 | . . . . . . . 2 2 . . 5 . . . . 3 . . . . 4 . . . 4 2 . . . . 6 Terminal Hacks 141 | . 3 . 7 1 1 . . 3 2 49 6 6 . . . . 1 1 28 . 9 6 1 . 3 2 3 3 3 . 3 Record 71 | . . . . . . . . . . 48 . 5 . . . . . . 16 . . . . . . . . 2 . . . Part Schematic 6 | . . . . . . . . . . . . . . . . . . . 4 . 1 . . . . . 1 . . . . Robot Analysis 11 | . 2 . 2 . . . . 1 . . . . . . . . . . 4 . 1 . . . . . 1 . . . . Prototype ID Bank 4 | . . . . . . . . . . . . . . . . . . . 4 . . . . . . . . . . . . Open Door 11 | . . . . 1 . . . 1 . . . 1 . . . . 1 1 . . 1 4 1 . . . . . . . . Branch Access Points 5 | . . . . . . . . . . . 1 . . . . . . . . . 1 . . . . 1 . . 1 . 1 Machine Index 1 | . . . . . . . . . . . 1 . . . . . . . . . . . . . . . . . . . . Terminal Index 5 | . 1 . 1 . . . . . . . . . . . . . . . . . 1 . . . 1 . 1 . . . . Alert Level 6 | . . . 1 . . . . . 1 . 1 . . . . . . . . . . . . . . 1 . . 1 . 1 Unreport Threat 7 | . . . . . . . . . 1 . . . . . . . . . . . 2 1 . . 2 . . . 1 . . Locate Traps 5 | . . . 2 . . . . 1 . . 1 . . . . . . . . . . 1 . . . . . . . . . Assault Status 1 | . . . . . . . . . . . . . . . . . . . . . 1 . . . . . . . . . . Recall Extermination 2 | . . . . . . . . . . . 1 . . . . . . . . . 1 . . . . . . . . . . Hauler Manifests 3 | . . . 1 . . . . . . . 1 . . . . . . . . . . . . . . . . . . . 1 Derelict Proto ID Bank 2 | . . . . . 1 . . . . 1 . . . . . . . . . . . . . . . . . . . . . Release Object 1 | . . . . . . . . . . . . . . . . . . . . . . . . . . . . 1 . . . Fabricator Hacks 15 | . . . . . . . . . . . 1 . . . . 1 . . . . 6 . . . . . 7 . . . . Network Status 3 | . . . . . . . . . . . 1 . . . . . . . . . 1 . . . . . 1 . . . . Load Schematic 6 | . . . . . . . . . . . . . . . . 1 . . . . 3 . . . . . 2 . . . . Build 6 | . . . . . . . . . . . . . . . . . . . . . 2 . . . . . 4 . . . . Repair Station Hacks 6 | . . . 2 . . . . . . . 3 . . . . . . . . . 1 . . . . . . . . . . Scan Component 4 | . . . 1 . . . . . . . 2 . . . . . . . . . 1 . . . . . . . . . . Repair 2 | . . . 1 . . . . . . . 1 . . . . . . . . . . . . . . . . . . . . Recycling Unit Hacks 1 | . 1 . . . . . . . . . . . . . . . . . . . . . . . . . . . . . . Report Inventory 1 | . 1 . . . . . . . . . . . . . . . . . . . . . . . . . . . . . . Scanalyzer 7 | . . . . . . . . . . . . . . . . 4 . . . . . . . . . 2 . . . 1 . Insert Component 5 | . . . . . . . . . . . . . . . . 2 . . . . . . . . . 2 . . . 1 . Analyze 2 | . . . . . . . . . . . . . . . . 2 . . . . . . . . . . . . . . . Garrison Access Hacks 7 | . . . . . . . . 1 . . 2 . . . . 1 . . . . 2 . . . . . . . . . 1 Seal Access 7 | . . . . . . . . 1 . . 2 . . . . 1 . . . . 2 . . . . . . . . . 1 Unauthorized Hacks 30 | . 7 . 8 . . . 2 2 . . 2 . . . . 3 . . . . 4 . . . 1 . 1 . . . . Terminals 25 | . 6 . 8 . . . 1 2 . . 2 . . . . 2 . . . . 3 . . . 1 . . . . . . Botnet 16 | . 3 . 2 . . . 1 2 . . 2 . . . . 2 . . . . 3 . . . 1 . . . . . . Skim 9 | . 3 . 6 . . . . . . . . . . . . . . . . . . . . . . . . . . . . Fabricators 3 | . . . . . . . . . . . . . . . . 1 . . . . 1 . . . . . 1 . . . . Prioritize 1 | . . . . . . . . . . . . . . . . . . . . . . . . . . . 1 . . . . Recompile 2 | . . . . . . . . . . . . . . . . 1 . . . . 1 . . . . . . . . . . Repair Stations . | . . . . . . . . . . . . . . . . . . . . . . . . . . . . . . . . Recycling Units 2 | . 1 . . . . . 1 . . . . . . . . . . . . . . . . . . . . . . . . Reject 2 | . 1 . . . . . 1 . . . . . . . . . . . . . . . . . . . . . . . . Scanalyzers . | . . . . . . . . . . . . . . . . . . . . . . . . . . . . . . . . Garrison Access . | . . . . . . . . . . . . . . . . . . . . . . . . . . . . . . . . Data Cores Recovered 1 | . . . . . . . . . . . . . . . . . . . . . 1 . . . . . . . . . . Used 1 | . . . . . . . . . . . . . . . . . . . . . 1 . . . . . . . . . . Hacking Detections 75 | . 5 . 12 . . . 4 5 1 . 8 . . . . 7 . . . . 12 2 1 . 2 4 5 . 2 1 4 Full Trace Events 10 | . 2 . 1 . . . . 1 . . 1 . . . . . . . . . 2 . 1 . 1 . . . . . 1 Feedback Events . | . . . . . . . . . . . . . . . . . . . . . . . . . . . . . . . . Feedback Blocked . | . . . . . . . . . . . . . . . . . . . . . . . . . . . . . . . . Robot Schematics Acquired 3 | . . . . . . . . . . . . . 3 . . . . . . . . . . . . . . . . . . Robots Built 2 | . . . . . . . . . . . . . . . . . . . . . . . . . . . 2 . . . . Authchips . | . . . . . . . . . . . . . . . . . . . . . . . . . . . . . . . . Time 68 | . . . . . . . . . . . . . . . . . . . . . . . . . . . 68 . . . . Total Robot Build Rating 16 | . . . . . . . . . . . . . . . . . . . . . . . . . . . 16 . . . . Part Schematics Acquired 21 | . . . . . . . . . . . . . 13 . . 2 . . 4 . 1 . . . . . 1 . . . . Parts Built 9 | . . . . . . . . . . . . . . . . . . . . . 4 . . . . . 5 . . . . Authchips 3 | . . . . . . . . . . . . . . . . . . . . . 1 . . . . . 2 . . . . Time 201 | . . . . . . . . . . . . . . . . . . . . . 75 . . . . . 126 . . . . Total Part Build Rating 45 | . . . . . . . . . . . . . . . . . . . . . 18 . . . . . 27 . . . . Parts Repaired 2 | . . . 1 . . . . . . . 1 . . . . . . . . . . . . . . . . . . . . Time 95 | . . . 51 . . . . . . . 44 . . . . . . . . . . . . . . . . . . . . Parts Recycled . | . . . . . . . . . . . . . . . . . . . . . . . . . . . . . . . . Recycled Matter . | . . . . . . . . . . . . . . . . . . . . . . . . . . . . . . . . Retrieved Matter . | . . . . . . . . . . . . . . . . . . . . . . . . . . . . . . . . Retrieved Components . | . . . . . . . . . . . . . . . . . . . . . . . . . . . . . . . . Parts Scanalyzed 2 | . . . . . . . . . . . . . . . . 2 . . . . . . . . . . . . . . . Part Schematics Acquired 2 | . . . . . . . . . . . . . . . . 2 . . . . . . . . . . . . . . . Parts Damaged 1 | . . . . . . . . . . . . . . . . 1 . . . . . . . . . . . . . . . Bothacking | -11 -10 -10 -9 -9 -9 -8 -8 -8 -8 -8 -6 -6 -6 -6 -5 -5 -5 -5 -5 -4 -4 -4 -4 -4 -4 -3 -3 -3 -2 -2 -1 ------------ Run | Yrd Mat Min Mat Min Exi Min Mat Sto Rec Scr Fac Low Zio Dee Pro Fac Upp Upp Zhi Pro Fac Ext Cet Arc Hub Res Arm Lab Res Tes Acc Used RIF Installer . | . . . . . . . . . . . . . . . . . . . . . . . . . . . . . . . . Robots Hacked 3 | . . . . . . . . . 1 1 . . 1 . . . . . . . . . . . . . . . . . . Non-combat . | . . . . . . . . . . . . . . . . . . . . . . . . . . . . . . . . Combat 3 | . . . . . . . . . 1 1 . . 1 . . . . . . . . . . . . . . . . . . Robot Hacks Applied 3 | . . . . . . . . . 1 1 . . 1 . . . . . . . . . . . . . . . . . . parse_system 3 | . . . . . . . . . 1 1 . . 1 . . . . . . . . . . . . . . . . . . Relay Couplers Released 3 | . . . . . . . . . . . . . . . . . . . . . . . . . 1 1 . . . . 1 Machine Destruction 3 | . . . . . . . . . . . . . . . . . . . . . . . . . 1 1 . . . . 1 Fabnet Peak Effective % . | . . . . . . . . . . . . . . . . . . . . . . . . . . . . . . . . Robots Rewired 19 | . . . . . 4 . . . . . . . . . . . . . . . . 7 . . . . 8 . . . . Allies Hacked 1 | . . . . . . . . . . . . . . . . . . . . . . . . . . . 1 . . . . Hacks Repelled . | . . . . . . . . . . . . . . . . . . . . . . . . . . . . . . . . Allies | -11 -10 -10 -9 -9 -9 -8 -8 -8 -8 -8 -6 -6 -6 -6 -5 -5 -5 -5 -5 -4 -4 -4 -4 -4 -4 -3 -3 -3 -2 -2 -1 -------- Run | Yrd Mat Min Mat Min Exi Min Mat Sto Rec Scr Fac Low Zio Dee Pro Fac Upp Upp Zhi Pro Fac Ext Cet Arc Hub Res Arm Lab Res Tes Acc Total Allies 39 | . . . . 3 4 . . 2 . 2 . . 2 . . . . . . . . 12 . . 4 . 10 . . . . Largest Group 11 | . . . . 3 7 7 . 2 . 1 . . 2 2 . . . . . . . 11 1 1 4 1 4 . . . . Highest-Rated Group 584 | . . . . 40 85 85 . 62 . 30 . . 192 192 . . . . . . . 584 151 122 247 109 260 . . . . Highest-Rated Ally 159 | . . . . 16 21 21 . 31 . 30 . . 96 96 . . . . . . . 159 151 122 109 109 65 . . . . Total Orders 2 | . . . . . . . . . . . . . . . . . . . . . . . . . . . 2 . . . . ROAM 1 | . . . . . . . . . . . . . . . . . . . . . . . . . . . 1 . . . . FOLLOW 1 | . . . . . . . . . . . . . . . . . . . . . . . . . . . 1 . . . . Ally Attacks 261 | . . . . 4 . 16 . 4 . . . . . 47 . . . . . . . 97 18 . 37 3 35 . . . . Total Damage 7173 | . . . . 24 . 172 . 82 . . . . . 1246 . . . . . . . 2510 586 . 1172 142 1239 . . . . Kills 37 | . . . . 1 . 1 . . . . . . . 8 . . . . . . . 13 3 . 7 1 3 . . . . Allies Corrupted 2 | . . . . . . . . . . . . . . . . . . . . . . . . . . . 2 . . . . Allies Melted . | . . . . . . . . . . . . . . . . . . . . . . . . . . . . . . . . Field Lobotomies 1 | . . . . . . . . . . . . . . . . . . . . . . . . . 1 . . . . . . Intel | -11 -10 -10 -9 -9 -9 -8 -8 -8 -8 -8 -6 -6 -6 -6 -5 -5 -5 -5 -5 -4 -4 -4 -4 -4 -4 -3 -3 -3 -2 -2 -1 ------- Run | Yrd Mat Min Mat Min Exi Min Mat Sto Rec Scr Fac Low Zio Dee Pro Fac Upp Upp Zhi Pro Fac Ext Cet Arc Hub Res Arm Lab Res Tes Acc Robot Analysis Total 11 | . 2 . 2 . . . . 1 . . . . . . . . . . 4 . 1 . . . . . 1 . . . . Derelict Logs Recovered 8 | . . . . 1 . . . . . . . 1 2 . 1 . 2 1 . . . . . . . . . . . . . Drone Launches . | . . . . . . . . . . . . . . . . . . . . . . . . . . . . . . . . Drone Recoveries . | . . . . . . . . . . . . . . . . . . . . . . . . . . . . . . . . Exploration | -11 -10 -10 -9 -9 -9 -8 -8 -8 -8 -8 -6 -6 -6 -6 -5 -5 -5 -5 -5 -4 -4 -4 -4 -4 -4 -3 -3 -3 -2 -2 -1 ------------- Run | Yrd Mat Min Mat Min Exi Min Mat Sto Rec Scr Fac Low Zio Dee Pro Fac Upp Upp Zhi Pro Fac Ext Cet Arc Hub Res Arm Lab Res Tes Acc Turns Passed 41873 | 65 1375 715 2285 422 695 915 1798 1451 385 4321 996 533 2048 4240 860 2054 1375 1225 749 840 1757 1572 613 1445 1247 1105 1515 744 276 959 1293 Spaces Moved 15959 | 22 734 279 1124 240 414 511 716 508 160 1920 456 259 1180 1468 177 775 411 564 176 227 563 550 155 237 254 285 427 227 152 422 366 Core 125 | . . . . . . . . . . 124 . . . . . . . . . . . . . . . . . . . . 1 Treads 10156 | . 616 . 1017 240 414 511 716 508 160 1600 456 259 1180 929 . . . . . . . 21 9 . 2 . 394 227 152 422 323 Legs 5065 | 22 109 . . . . . . . . . . . . 534 177 775 411 564 176 227 563 529 146 237 252 285 33 . . . 25 Wheels 613 | . 9 279 107 . . . . . . 196 . . . 5 . . . . . . . . . . . . . . . . 17 Hover . | . . . . . . . . . . . . . . . . . . . . . . . . . . . . . . . . Flight . | . . . . . . . . . . . . . . . . . . . . . . . . . . . . . . . . Fastest Speed 50 | 120 105 105 105 160 160 160 155 160 240 50 156 160 160 160 210 180 210 210 210 210 210 210 240 180 210 240 237 250 155 151 151 Average Speed 196 | 120 153 105 155 160 160 160 185 213 240 221 173 160 160 225 210 209 213 211 210 211 230 238 244 237 241 240 241 250 155 151 186 Slowest Speed 2100 | 120 160 105 240 160 160 160 240 240 240 240 241 160 160 270 210 210 240 240 210 240 240 330 320 240 320 240 250 250 155 250 2100 Overloaded Moves . | . . . . . . . . . . . . . . . . . . . . . . . . . . . . . . . . Propulsion Burnouts . | . . . . . . . . . . . . . . . . . . . . . . . . . . . . . . . . Robots Hopped . | . . . . . . . . . . . . . . . . . . . . . . . . . . . . . . . . Cave-ins Triggered 1 | . . . . . . . . . . . . . . . . . . . . . . . . . . . . . . . 1 Teleports 2 | . . . . . . . . . . . . . . . . . . . . . . . . . . . 1 . . . 1 Exploration Rate (%) 55 | 4 100 53 91 75 88 88 58 84 29 93 14 26 86 89 40 21 63 73 62 50 19 72 65 78 20 14 31 98 8 59 15 Regions Visited 31 Branch Regions 22 Pre-discovered Areas 13 | . . 1 2 1 . . . . . 4 . . 2 . . . . . 3 . . . . . . . . . . . . Known Exits Taken 18 | . . . 1 . . 1 1 1 1 1 1 1 1 . 1 1 1 . . 1 1 . . . 1 1 . 1 1 . . Unknown Exits Taken 13 | 1 1 1 . 1 1 . . . . . . . . 1 . . . 1 1 . . 1 1 1 . . 1 . . 1 . Scrap Searched 20 | . . 1 . 1 . 1 . . . 6 . 1 3 . 1 . 1 4 . 1 . . . . . . . . . . . Spaces Dug 114 | . . . 1 . . . 1 7 . . 3 . . 3 4 13 3 5 . 8 9 1 . . 3 . 4 . 7 27 15 Terrain Destroyed 1210 | . 40 . 1 . . . 104 123 . . 41 4 . 114 30 27 15 8 . 13 112 23 1 11 42 30 39 . 30 96 306 Melee 15 | . . . 1 . . . 1 7 . . 3 . . 3 . . . . . . . . . . . . . . . . . Projectile 438 | . . . . . . . 14 27 . . . . . 8 30 27 15 8 . 13 67 23 1 11 42 30 39 . 7 37 39 AOE 749 | . 40 . . . . . 89 89 . . 38 4 . 103 . . . . . . 45 . . . . . . . 23 59 259 Terrain Rammed . | . . . . . . . . . . . . . . . . . . . . . . . . . . . . . . . . Walls Destroyed . | . . . . . . . . . . . . . . . . . . . . . . . . . . . . . . . . Machines Disabled . | . . . . . . . . . . . . . . . . . . . . . . . . . . . . . . . . Actions | -11 -10 -10 -9 -9 -9 -8 -8 -8 -8 -8 -6 -6 -6 -6 -5 -5 -5 -5 -5 -4 -4 -4 -4 -4 -4 -3 -3 -3 -2 -2 -1 --------- Run | Yrd Mat Min Mat Min Exi Min Mat Sto Rec Scr Fac Low Zio Dee Pro Fac Upp Upp Zhi Pro Fac Ext Cet Arc Hub Res Arm Lab Res Tes Acc Total 23950 | 43 856 659 1455 266 446 556 1012 704 161 2013 616 353 1252 2286 620 1156 842 580 561 560 790 691 351 1090 612 624 759 387 177 749 723 Wait 4835 | 10 18 354 148 16 9 9 86 24 . 14 72 67 9 601 394 238 373 1 363 313 58 11 157 745 126 265 135 102 10 77 30 Move 15928 | 21 733 278 1123 239 413 510 715 507 159 1919 455 258 1179 1467 176 774 410 563 175 226 562 549 154 236 253 284 426 226 151 421 366 Hop . | . . . . . . . . . . . . . . . . . . . . . . . . . . . . . . . . Pick Up 328 | 1 10 1 11 . 3 4 24 15 . 27 10 1 2 29 6 33 6 . 2 1 10 8 4 25 22 9 17 4 . 23 20 Fast Attach 156 | 1 2 . 12 2 . 1 11 6 . 7 3 1 4 11 1 6 2 2 5 . 4 2 2 8 6 3 9 10 3 14 18 Attach 123 | . 2 . 3 . 1 1 11 3 . 2 7 . 2 8 4 8 4 . 1 . 7 1 1 6 11 3 3 4 1 2 27 Detach 189 | . . . 2 . . . 8 3 . 4 3 . 1 18 7 11 5 . 9 3 14 10 5 21 17 9 6 18 1 5 9 Swap 199 | 1 5 . 15 1 5 2 18 21 1 2 14 6 6 27 . 4 1 2 . 2 13 5 2 . 7 1 18 2 . 3 15 Drop 404 | . 11 1 22 2 5 2 29 17 . 35 14 3 5 38 6 39 6 2 6 1 7 9 7 27 16 9 28 7 . 33 17 Fire 1567 | 9 72 25 112 6 . 26 100 95 . . 34 17 4 77 26 42 35 10 . 14 110 56 19 22 148 41 76 14 11 171 195 Melee 48 | . . . 1 . 9 . 1 12 1 1 4 . 12 7 . . . . . . . . . . . . . . . . . Ram 1 | . . . . . . . . . . . . . . . . . . . . . . . . . . . . . . . 1 Kick 12 | . . . . . . . . . . . . . . . . 1 . . . . 5 6 . . . . . . . . . Crush 11 | . 3 . 6 . . 1 . 1 . . . . . . . . . . . . . . . . . . . . . . . Escape Stasis 30 | . . . . . . . . . . . . . . . . . . . . . . 5 . . . . . . . . 25 Rewire 72 | . . . . . 1 . . . . 1 . . . . . . . . . . . 29 . . . . 41 . . . . Trap 13 | . . . . . . . 9 . . 1 . . . 3 . . . . . . . . . . . . . . . . . Miscellaneous 34 | . . . . . . . . . . . . . 28 . . . . . . . . . . . 6 . . . . . . Route ------- -11/Scrapyard -10/Materials (discovered 5 exits: *Mat x3 / [*Min] / [*Sub]) -10/Mines -9/Materials (discovered 5 exits: *Mat x3 / *Min x2) -9/Mines (discovered 3 exits: Mat x2 / *Exi) -9/Exiles -8/Mines -8/Materials (discovered 3 exits: [*Fac] / *Sto x2) -8/Storage (discovered 2 exits: [*Fac] / *Rec) -8/Recycling (discovered 2 exits: *Fac / *Scr) -8/Scraptown (discovered 2 exits: *Fac x2) -6/Factory (discovered 5 exits: Fac x3 / *Low x2) -6/Lower Caves (discovered 2 exits: Low / *Zio) -6/Zion (discovered 2 exits: *Dee / *Pro) -6/Deep Caves -5/Proximity Caves -5/Factory (discovered 2 exits: *Upp x2) -5/Upper Caves -5/Upper Caves (discovered 2 exits: *Fac / *Zhi) -5/Zhirov -4/Proximity Caves -4/Factory (discovered 7 exits: Res x3 / *Upp x2 / *Ext x2) -4/Extension (discovered 2 exits: *Res / *Cet) -4/Cetus (discovered 2 exits: *Res / *Arc) -4/Archives (discovered 3 exits: *Res / *Hub x2) -4/Hub_04(d) -3/Research (discovered 4 exits: Res / *Arm / Qua x2) -3/Armory -3/Lab -2/Research (discovered 2 exits: *Tes x2) -2/Testing -1/Access (discovered 1 exit: Com) History --------- Turn | Location | Event 1 | -11/Scrapyard | Discovered new exit (range 2) 66 | -11/Scrapyard | Entered Materials 313 | -10/Materials | Build established: Mutant 529 | -10/Materials | Discovered new exit (range 14) 633 | -10/Materials | Discovered new exit (range 5) 826 | -10/Materials | Discovered new exit (range 16) 1074 | -10/Materials | Core integrity fell below 50% 1127 | -10/Materials | Discovered new exit (range 5) 1249 | -10/Materials | Discovered new exit (range 16) 1441 | -10/Materials | Entered Mines 1442 | -10/Mines | Assembled infested the area 1447 | -10/Mines | Assisted by a Guerilla fighting off Assembled 1468 | -10/Mines | Met a Derelict bent on vengeance 1904 | -10/Mines | Discovered new exit (range 15) 1916 | -10/Mines | Learned location of Storage (-8) 1999 | -10/Mines | Core integrity fell below 20% 2156 | -10/Mines | Entered Materials 2156 | -9/Materials | Evolved 2 slots: Propulsion x1, Utility x1 2662 | -9/Materials | Discovered new exit (range 7) 2725 | -9/Materials | Build established: Scavenger-Mutant 3204 | -9/Materials | Repaired Imp. Assault Rifle 3408 | -9/Materials | Discovered new exit (range 16) 3518 | -9/Materials | Central database locked down 4088 | -9/Materials | Learned 4 Recycling zone layouts 4200 | -9/Materials | Learned 2 Storage zone layouts 4241 | -9/Materials | Identified exit to Materials 4321 | -9/Materials | Identified exit to Mines 4358 | -9/Materials | Learned location of Zion (-6) 4441 | -9/Materials | Entered Mines 4444 | -9/Mines | Core integrity fell below 50% 4586 | -9/Mines | Assisted by bots powering up and referring to "LRC-V3" 4782 | -9/Mines | Found the Drone Emporium 4790 | -9/Mines | Found Prototype Device 4790 | -9/Mines | Identified Splice Drone Bay 4839 | -9/Mines | Deemed a non-threat by the Exiles lab entrance 4839 | -9/Mines | Discovered new exit (range 5) 4863 | -9/Mines | Entered Exiles 4863 | -9/Exiles | Found Exiles lab destroyed 4863 | -9/Exiles | Accompanied by 3 allies 5086 | -9/Exiles | Opened EX-Vault 5094 | -9/Exiles | Found Field Lobotomy Kit 5309 | -9/Exiles | Build established: Commander-Mutant 5527 | -9/Exiles | Discovered new exit (range 14) 5558 | -9/Exiles | Entered Mines 5558 | -8/Mines | Accompanied by 7 allies 5698 | -8/Mines | Lost 5 allies 5957 | -8/Mines | Build established: Mutant 6370 | -8/Mines | Discovered exit to Materials (range 14) 6473 | -8/Mines | Entered Materials 6473 | -8/Materials | Evolved 2 slots: Utility x2 6647 | -8/Materials | Discovered new exit (range 9) 6770 | -8/Materials | Build established: Scavenger-Mutant 6937 | -8/Materials | Destroyed 8 combat bots 7005 | -8/Materials | Lost 4 parts (1p2n1w) 7372 | -8/Materials | Build established: Mutant 7499 | -8/Materials | Discovered new exit (range 9) 7659 | -8/Materials | Discovered new exit (range 13) 7752 | -8/Materials | Build established: Scavenger-Mutant 8073 | -8/Materials | First assault squad dispatched 8157 | -8/Materials | Identified exit to Storage 8221 | -8/Materials | Build established: Mutant 8271 | -8/Materials | Entered Storage 8371 | -8/Storage | Core integrity fell below 50% 8499 | -8/Storage | Core integrity fell below 20% 8546 | -8/Storage | Destroyed 7 combat bots 8800 | -8/Storage | Discovered new exit (range 16) 9137 | -8/Storage | Build established: Scavenger-Mutant 9467 | -8/Storage | Met a pair of Derelict thieves 9643 | -8/Storage | Destroyed 11 combat bots 9713 | -8/Storage | Used back door to open Recycling access 9713 | -8/Storage | Discovered new exit (range 5) 9720 | -8/Storage | Identified exit to Recycling 9722 | -8/Storage | Entered Recycling 9723 | -8/Recycling | Identified exit to Scraptown 9723 | -8/Recycling | Identified exit to Factory 10032 | -8/Recycling | Scanned before Scraplab entrance 10080 | -8/Recycling | Entered Scraplab 10107 | -8/Recycling | Entered Scraptown 10849 | -8/Scraptown | Discovered exit to Factory (range 5) 11063 | -8/Scraptown | Visited CR-KLE's Repair Center 11079 | -8/Scraptown | CR-KLE repaired 6 parts 11618 | -8/Scraptown | Visited Shadow of the Wyrm 11716 | -8/Scraptown | Visited UFD Registry 11733 | -8/Scraptown | Visited Red Mages 11834 | -8/Scraptown | Visited IN-MT5's Study 11898 | -8/Scraptown | Visited Cyclists 12042 | -8/Scraptown | Registered with UFD as "Thermorunner" 12100 | -8/Scraptown | Visited Derelict Rescue Squad 12194 | -8/Scraptown | Visited Curators Association 12251 | -8/Scraptown | Visited Observation Area 12695 | -8/Scraptown | Visited Science Guys 12754 | -8/Scraptown | Warned about trapping Scraptown 12797 | -8/Scraptown | Visited Scrap Suit Storage 13006 | -8/Scraptown | Visited DA-N13 Charitable Foundation 13023 | -8/Scraptown | Found DCF Scrap (29 items) 13097 | -8/Scraptown | Visited Abandonware Association 13116 | -8/Scraptown | Learned abandonware demo "OVRCLOCK.EXE" 13123 | -8/Scraptown | Learned abandonware demo "SHUTEYE.EXE" 13123 | -8/Scraptown | Learned abandonware demo "MELTYB.EXE" 13183 | -8/Scraptown | Visited Junk Cannon Lab 13251 | -8/Scraptown | Found Prototype Special Weapon 13251 | -8/Scraptown | Identified Junk Cannon 13304 | -8/Scraptown | Visited Cartography Club 13346 | -8/Scraptown | Found Surveybot 17 Chip 13831 | -8/Scraptown | Learned location of Upper Caves (-5) 13831 | -8/Scraptown | Learned location of Hub_04(d) (-4) 13831 | -8/Scraptown | Learned location of Quarantine (-3) 13831 | -8/Scraptown | Learned 12 Materials zone layouts 13831 | -8/Scraptown | Learned 16 Factory zone layouts 13831 | -8/Scraptown | Learned 24 Factory zone layouts 13831 | -8/Scraptown | Learned 8 Research zone layouts 13831 | -8/Scraptown | Learned 16 Research zone layouts 13831 | -8/Scraptown | Learned 4 Recycling zone layouts 13831 | -8/Scraptown | Learned 12 Proximity Caves zone layouts 13831 | -8/Scraptown | Learned 20 Proximity Caves zone layouts 13831 | -8/Scraptown | Learned 4 Armory zone layouts 13831 | -8/Scraptown | Learned Research emergency access door positions 13831 | -8/Scraptown | Learned location of 1 exit from Lower Caves 13831 | -8/Scraptown | Learned location of 3 exits from Proximity Caves 13852 | -8/Scraptown | Found Deep Structural Scanner 14142 | -8/Scraptown | Visited Botcube Research 14164 | -8/Scraptown | Lrg. Botcube activated 14172 | -8/Scraptown | Lrg. Botcube activated 14382 | -8/Scraptown | Build established: Mutant 14428 | -8/Scraptown | Entered Factory 14428 | -6/Factory | Evolved 4 slots: Propulsion x1, Utility x3 14429 | -6/Factory | Identified exit to Factory 14535 | -6/Factory | Found Powered Armor 14700 | -6/Factory | Identified exit to Lower Caves 14975 | -6/Factory | Repaired Imp. Medium Armor Plating 15424 | -6/Factory | Entered Lower Caves 15425 | -6/Lower Caves | Identified exit to Lower Caves 15615 | -6/Lower Caves | Learned Extension emergency access door positions 15615 | -6/Lower Caves | Learned Armory stockpile data 15699 | -6/Lower Caves | A Derelict revealed a hidden shortcut to a safe place 15703 | -6/Lower Caves | Learned Factory garrison access intel 15714 | -6/Lower Caves | Identified exit to Zion 15763 | -6/Lower Caves | Build established: Hacker-Mutant 15957 | -6/Lower Caves | Entered Zion 15958 | -6/Zion | Identified exit to Proximity Caves 16038 | -6/Zion | Learned Factory emergency access door positions 16094 | -6/Zion | System corruption cleaned by Quarantine Array 16214 | -6/Zion | Given the Hacking Drone Bay 16557 | -6/Zion | Build established: Hacker-Skirmisher 16692 | -6/Zion | Given A8's code to call for help 16748 | -6/Zion | Turned away by Imprinter 16931 | -6/Zion | Build established: Hacker-Assassin 17022 | -6/Zion | Learned location of Armory (-3) 17033 | -6/Zion | Learned location of Warlord (-4) 17195 | -6/Zion | Learned Factory garrison access intel 17593 | -6/Zion | Discovered new exit (range 5) 17596 | -6/Zion | Saw the warning signs outside the Deep Caves entrance 17603 | -6/Zion | Identified exit to Deep Caves 17631 | -6/Zion | Enhanced Grunt warped into view, answering call for help 17635 | -6/Zion | Enhanced Grunt warped into view, answering call for help 18005 | -6/Zion | Entered Deep Caves 18005 | -6/Deep Caves | Accompanied by 2 allies 18104 | -6/Deep Caves | Build established: Hacker-Mutant 18172 | -6/Deep Caves | Found Surveybot 24 Chip 18180 | -6/Deep Caves | Found Surveybot 24 Scanner 18462 | -6/Deep Caves | Attacked by Z-Imprinter 18474 | -6/Deep Caves | Allies destroyed Z-Imprinter 18596 | -6/Deep Caves | Found Prototype Protection 18596 | -6/Deep Caves | Identified Zio. Weapon Casing 18736 | -6/Deep Caves | Build established: Mutant 18751 | -6/Deep Caves | Z-Facility disabled 18816 | -6/Deep Caves | Found Zio. Weapon Casing 18895 | -6/Deep Caves | Found Prototype Protection 18895 | -6/Deep Caves | Identified Zio. Heavy Carapace 19025 | -6/Deep Caves | Found Zio. Weapon Casing 19185 | -6/Deep Caves | Found Zio. Heavy Carapace 19992 | -6/Deep Caves | Discovered new exit (range 6) 20240 | -6/Deep Caves | Spotted AG-47508 20278 | -6/Deep Caves | Destroyed AG-47508 20395 | -6/Deep Caves | Spotted AG-14630 20435 | -6/Deep Caves | Destroyed AG-14630 20518 | -6/Deep Caves | Triggered Deep Caves wall 20518 | -6/Deep Caves | Spotted AS-28810 20518 | -6/Deep Caves | Spotted AS-15542 20526 | -6/Deep Caves | Destroyed AS-28810 20539 | -6/Deep Caves | Destroyed AS-15542 20554 | -6/Deep Caves | Destroyed 35 combat bots 20562 | -6/Deep Caves | Lost 4 parts (1n3u) 20565 | -6/Deep Caves | Exposed GOLEM chamber 20570 | -6/Deep Caves | Found GOLEM Unit 20890 | -6/Deep Caves | Found GOLEM Unit 20896 | -6/Deep Caves | Found GOLEM Unit 20902 | -6/Deep Caves | Found GOLEM Unit 21161 | -6/Deep Caves | Build established: Golem 21977 | -6/Deep Caves | Found Zio. Heavy Carapace 22245 | -6/Deep Caves | Entered Proximity Caves 22259 | -5/Proximity Caves | Core integrity fell below 50% 22317 | -5/Proximity Caves | Build established: Mutant 22420 | -5/Proximity Caves | Spotter reported a threat 22502 | -5/Proximity Caves | Spotter reported a threat 23028 | -5/Proximity Caves | Build established: Golem 23105 | -5/Proximity Caves | Entered Factory 23105 | -5/Factory | Evolved 2 slots: Power x1, Utility x1 23106 | -5/Factory | Identified exit to Upper Caves 23108 | -5/Factory | Loaded intel: 4 garrison access locations 24433 | -5/Factory | Noticed a derelict Sapper rigging charges 25159 | -5/Factory | Entered Upper Caves 25207 | -5/Upper Caves | Identified exit to Upper Caves 25444 | -5/Upper Caves | Destroyed 7 combat bots 25474 | -5/Upper Caves | Attracted the attention of an 0b10 outpost 25986 | -5/Upper Caves | Encountered a Warlord checkpoint 26006 | -5/Upper Caves | Learned Factory emergency access door positions 26534 | -5/Upper Caves | Entered another Upper Caves area 26589 | -5/Upper Caves | Discovered new exit (range 11) 26992 | -5/Upper Caves | Learned Factory trap positions 27558 | -5/Upper Caves | Discovered new exit (range 13) 27733 | -5/Upper Caves | Attracted the attention of an 0b10 base 27759 | -5/Upper Caves | Entered Zhirov 27759 | -5/Zhirov | Discovered new exit (range 3) 27797 | -5/Zhirov | Met Zhirov 27847 | -5/Zhirov | Learned location of Testing (-2) 27847 | -5/Zhirov | Learned location of Command (-1) 27880 | -5/Zhirov | Zhirov requested help retrieving the SGEMP Prototype 27931 | -5/Zhirov | Found Alien Artifact 27931 | -5/Zhirov | Identified Integrated Reactor 27931 | -5/Zhirov | Installed Integrated Reactor, increased core energy generation (+10) 28006 | -5/Zhirov | Found Alien Artifact 28508 | -5/Zhirov | Entered Proximity Caves 28509 | -4/Proximity Caves | Identified exit to Factory 28511 | -4/Proximity Caves | Spotter reported a threat 28787 | -4/Proximity Caves | Spotted B-86 Titan 29348 | -4/Proximity Caves | Entered Factory 29348 | -4/Factory | Evolved 2 slots: Utility x1, Weapon x1 29349 | -4/Factory | Identified exit to Research 29350 | -4/Factory | Loaded intel: 80 trap records 29352 | -4/Factory | Loaded intel: 4 garrison access locations 29459 | -4/Factory | Discovered new exit (range 12) 29722 | -4/Factory | Destroyed 7 combat bots 29745 | -4/Factory | Build established: Hacker-Golem 29782 | -4/Factory | Fabricated Powered Armor (x2) 30198 | -4/Factory | Discovered new exit (range 13) 30280 | -4/Factory | Found Prototype Hackware 30348 | -4/Factory | First assault squad dispatched 30402 | -4/Factory | Fabricated Weapon Mount (x2) 31013 | -4/Factory | Identified exit to Upper Caves 31013 | -4/Factory | Identified exit to Extension 31105 | -4/Factory | Entered Extension 31552 | -4/Extension | Rescued a captive Derelict 31567 | -4/Extension | Spotted B-86 Titan 31585 | -4/Extension | Destroyed B-86 Titan 31733 | -4/Extension | Rescued a captive Derelict 31735 | -4/Extension | Rescued a captive Derelict 31871 | -4/Extension | Rescued a captive Derelict 31950 | -4/Extension | Rescued A7 32105 | -4/Extension | First assault squad dispatched 32322 | -4/Extension | Build established: Commander-Golem 32346 | -4/Extension | Destroyed B-86 Titan 32596 | -4/Extension | Discovered new exit (range 16) 32598 | -4/Extension | Discovered exit to Research (range 15) 32644 | -4/Extension | Lost 5 allies 32677 | -4/Extension | Entered Cetus 32677 | -4/Cetus | Accompanied by 1 ally (A7) 32682 | -4/Cetus | Acquired a Cetus Manufacturing Module code from A7 32735 | -4/Cetus | Build established: Hacker-Golem 32848 | -4/Cetus | Destroyed Cetus Guard 32851 | -4/Cetus | Destroyed Cetus Guard 32855 | -4/Cetus | Spotted Cetus Guard 32858 | -4/Cetus | Destroyed Cetus Guard 33012 | -4/Cetus | Escorted A7 to Cetus Mainframe 33071 | -4/Cetus | Discovered new exit (range 15) 33132 | -4/Cetus | Destroyed Cetus Guard 33135 | -4/Cetus | Destroyed Cetus Guard 33143 | -4/Cetus | Destroyed Cetus Guard 33197 | -4/Cetus | Discovered exit to Research (range 15) 33213 | -4/Cetus | Met Revision 17 33290 | -4/Cetus | Entered Archives 33290 | -4/Archives | Accompanied by 1 ally (A7) 33295 | -4/Archives | Received a hacking code to weaken MAIN.C 33467 | -4/Archives | Discovered exit to Research (range 15) 33496 | -4/Archives | Unable to access archive contents 33506 | -4/Archives | Discovered new exit (range 16) 33660 | -4/Archives | Build established: Hacker-Gunner 33663 | -4/Archives | Discovered new exit (range 15) 33971 | -4/Archives | Build established: Scavenger-Golem 34735 | -4/Archives | Entered Hub_04(d) 34850 | -4/Hub_04(d) | Garrison activated, responded to threat 35042 | -4/Hub_04(d) | Lost 3 parts (1u2w) 35070 | -4/Hub_04(d) | Destroyed 9 combat bots 35235 | -4/Hub_04(d) | First assault squad dispatched 35344 | -4/Hub_04(d) | Network Hub disabled 35368 | -4/Hub_04(d) | Core integrity fell below 50% 35381 | -4/Hub_04(d) | Network Hub disabled 35416 | -4/Hub_04(d) | Spotted Lightning 35417 | -4/Hub_04(d) | Spotted Lightning 35426 | -4/Hub_04(d) | Spotted Lightning 35428 | -4/Hub_04(d) | System corruption reached 10% 35440 | -4/Hub_04(d) | Destroyed Lightning 35477 | -4/Hub_04(d) | System corruption reached 30% 35481 | -4/Hub_04(d) | Assimilated Lightning with FLK Orb 35497 | -4/Hub_04(d) | Lost 5 parts (1n1u3w) 35541 | -4/Hub_04(d) | Destroyed Lightning 35845 | -4/Hub_04(d) | Discovered exit to Research (range 8) 35982 | -4/Hub_04(d) | Entered Research 35982 | -3/Research | Accompanied by 1 ally 35982 | -3/Research | Evolved 2 slots: Power x1, Utility x1 35983 | -3/Research | Identified exit to Quarantine 35983 | -3/Research | Identified exit to Research 36182 | -3/Research | Revision forces began assault on 0b10 36217 | -3/Research | Identified exit to Armory 36242 | -3/Research | Met up with Revision 17++ 36248 | -3/Research | Found Prototype Device 36248 | -3/Research | Identified Exp. EM Disruption Field 36302 | -3/Research | Found Fusion Bomb Launcher 36653 | -3/Research | Identified Exp. Hacking Suite 36678 | -3/Research | Spotted B-86 Titan 36682 | -3/Research | Research terminal network offline 36691 | -3/Research | Destroyed B-86 Titan 36734 | -3/Research | Spotted Striker 36752 | -3/Research | Destroyed Striker 36782 | -3/Research | Lost 7 allies 36793 | -3/Research | Build established: Hacker-Golem 37087 | -3/Research | Entered Armory 37233 | -3/Armory | Fabricated Adv. Heavy Siege Treads (x1) 37721 | -3/Armory | Fabricated Powered Armor? 37837 | -3/Armory | First assault squad dispatched 37866 | -3/Armory | Lost 3 allies 37868 | -3/Armory | Found Quantum Capacitor 37915 | -3/Armory | Fabricated X-82 Rainmaker? 37956 | -3/Armory | Fabricated Force Field (x2) 38066 | -3/Armory | P-80 Master assimilated allied Rainmaker 8b 38394 | -3/Armory | P-80 Master assimilated allied Archangel 8d 38470 | -3/Armory | Destroyed 10 combat bots 38509 | -3/Armory | Identified Transdimensional Reconstructor 38509 | -3/Armory | Warped through subspace to slip node 38509 | -3/Armory | Discovered new exit (range 1) 38602 | -3/Armory | Entered Lab 38603 | -3/Lab | Discovered exit to Research (range 9) 38633 | -3/Lab | Unable to decrypt terminal 38633 | -3/Lab | Opened the door to a hidden lab 38634 | -3/Lab | Gained access to the hidden lab's interior 38714 | -3/Lab | Detected by scanners 38720 | -3/Lab | Unable to decrypt terminal 38723 | -3/Lab | Confronted by A5 38750 | -3/Lab | Destroyed A5 38772 | -3/Lab | Found Prototype Protection 38772 | -3/Lab | Identified Med. Regenerative Plating 38844 | -3/Lab | Found Alien Artifact 38844 | -3/Lab | Identified Integrated Dissipator 38844 | -3/Lab | Installed Integrated Dissipator, increased core heat dissipation (+20) 38863 | -3/Lab | Found Alien Artifact 38863 | -3/Lab | Identified Core Regenerator 38863 | -3/Lab | Used Core Regenerator, restored core integrity (+231) 38930 | -3/Lab | Found Prototype Protection 38930 | -3/Lab | Identified Exp. Powered Armor 38936 | -3/Lab | Found Prototype Energy Gun 38936 | -3/Lab | Identified Hyp. EM Gauss Rifle 38944 | -3/Lab | Found Prototype Energy Cannon 38944 | -3/Lab | Identified Potential Cannon 38971 | -3/Lab | Unable to decrypt terminal 39023 | -3/Lab | Unable to decrypt terminal 39139 | -3/Lab | Build established: Golem 39230 | -3/Lab | Found Prototype Hackware 39295 | -3/Lab | Found Transdimensional Reconstructor 39346 | -3/Lab | Entered Research 39346 | -2/Research | Evolved 2 slots: Propulsion x2 39453 | -2/Research | Identified exit to Testing 39579 | -2/Research | Build established: Scavenger-Gunner 39622 | -2/Research | Entered Testing 39750 | -2/Testing | Spotted PY-N1P39M0AX5 39783 | -2/Testing | Destroyed PY-N1P39M0AX5 39832 | -2/Testing | Found Prototype Ballistic Gun 39832 | -2/Testing | Identified Hyp. Multirail 39944 | -2/Testing | Found Prototype Energy Cannon 39944 | -2/Testing | Identified Imp. Potential Cannon 39977 | -2/Testing | Found Prototype Hackware 39977 | -2/Testing | Identified Ghost Barrier 40009 | -2/Testing | Spotted Striker 40009 | -2/Testing | Spotted Striker 40130 | -2/Testing | Discovered new exit (range 18) 40199 | -2/Testing | Identified Quantum Router 40281 | -2/Testing | Build established: Hacker-Gunner 40293 | -2/Testing | Intercept squad dispatched 40295 | -2/Testing | Spotted Tracker 40295 | -2/Testing | Spotted Tracker 40300 | -2/Testing | Spotted Combat Programmer 40301 | -2/Testing | Destroyed Tracker 40301 | -2/Testing | Spotted Combat Programmer 40308 | -2/Testing | Destroyed Combat Programmer 40314 | -2/Testing | Destroyed Combat Programmer 40322 | -2/Testing | Destroyed Tracker 40421 | -2/Testing | Found Prototype Device 40421 | -2/Testing | Identified Exp. Hardlight Generator 40581 | -2/Testing | Entered Access 40581 | -1/Access | Evolved 2 slots: Power x1, Utility x1 40610 | -1/Access | Spotted B-99 Colossus 40682 | -1/Access | Garrison activated, responded to threat 40831 | -1/Access | First assault squad dispatched 40857 | -1/Access | Garrison activated, responded to threat 40894 | -1/Access | Destroyed 13 combat bots 41165 | -1/Access | Spotted B-99 Colossus 41221 | -1/Access | Destroyed B-99 Colossus 41304 | -1/Access | Found Exp. Hacking Suite 41331 | -1/Access | Intercept squad dispatched 41348 | -1/Access | Spotted Tracker 41348 | -1/Access | Spotted Tracker 41351 | -1/Access | Identified exit to Command 41360 | -1/Access | Spotted Combat Programmer 41370 | -1/Access | Build established: Generator-Tank 41371 | -1/Access | Destroyed Tracker 41403 | -1/Access | Spotted Combat Programmer 41414 | -1/Access | System corruption reached 10% 41427 | -1/Access | Destroyed Combat Programmer 41430 | -1/Access | Found Prototype Processor 41432 | -1/Access | Destroyed Tracker 41436 | -1/Access | Destroyed Combat Programmer 41484 | -1/Access | High security lockdown imminent 41535 | -1/Access | Lost 10 parts (2p3n3u2w) 41539 | -1/Access | Destroyed 7 combat bots 41564 | -1/Access | High security lockdown engaged 41693 | -1/Access | Crushed by falling debris 41711 | -1/Access | Destroyed 11 combat bots 41716 | -1/Access | Identified Exp. Targeting Computer 41722 | -1/Access | System corruption reached 30% 41755 | -1/Access | Destroyed 7 combat bots 41763 | -1/Access | Warped through subspace 41788 | -1/Access | Lost 25 parts (2p7n12u4w) 41818 | -1/Access | Scanned by Researcher 41819 | -1/Access | Spotted Investigator 41832 | -1/Access | Destroyed Investigator 41849 | -1/Access | Core integrity fell below 50% 41868 | -1/Access | Core integrity fell below 20% 41874 | -1/Access | Destroyed by G-73 Enforcer with Phase Gun Last Messages --------------- 41857_ Stasis bubble strength at 29. 41858_ K-01 Serf collects debris. 41859_ Stasis bubble strength at 23. 41860_ Stasis bubble strength at 17. 41861_ Stasis bubble strength at 11. 41861_ Critical hit (Burn: +18). 41862_ Stasis bubble strength at 5. 41863_ Stasis bubble bursts. 41863_ K-01 Serf collects debris. 41864_ Exp. Energy Well destroyed. 41864_ Exp. Hacking Suite destroyed. 41866_ K-01 Serf collects debris. 41867_ M-36 Artificer repairs G-73 Enforcer. 41869_ M-36 Artificer repairs Myomer Leg. 41869_ K-01 Serf collects debris. 41870_ G-73 Enforcer stasis bubble strength at 85. 41871_ K-01 Serf collects debris. 41873_ 8|&EIK